fUST/lending_fUST_20240821
["ID","MTS","AMOUNT","RATE_DAILY","PERIOD"]
[335391827,1724179845161,-712.12,0.00034931,21]
[335391828,1724179845171,-500.0,0.00034931,21]
[335391829,1724179845179,-712.12,0.00034931,21]
[335391830,1724179845189,-500.0,0.00034931,21]
[335391831,1724179845198,-712.12,0.00034931,21]
[335391832,1724179845208,-500.0,0.00034931,21]
[335391833,1724179845217,-712.12,0.00034931,21]
[335391834,1724179845226,-500.0,0.00034931,21]
[335391835,1724179845235,-712.12,0.00034931,21]
[335391836,1724179845244,-500.0,0.00034931,21]
[335391837,1724179845253,-712.12,0.00034931,21]
[335391838,1724179845263,-712.12,0.00034931,21]
[335391839,1724179845272,-513.65945483,0.00034931,21]
[335391840,1724179845281,-712.12,0.00034931,21]
[335391841,1724179845290,-712.12,0.00034931,21]
[335391842,1724179845299,-500.0,0.00034931,21]
[335391843,1724179845308,-712.12,0.00034931,21]
[335391844,1724179845317,-712.12,0.00034931,21]
[335391845,1724179845326,-712.12,0.00034931,21]
[335391846,1724179845335,-712.12,0.00034931,21]
[335391847,1724179845345,-712.12,0.00034931,21]
[335391848,1724179845354,-712.12,0.00034931,21]
[335391849,1724179845363,-712.12,0.00034931,21]
[335391850,1724179845372,-500.0,0.00034931,21]
[335391851,1724179845382,-500.0,0.00034931,21]
[335391852,1724179845393,-712.12,0.00034931,21]
[335391853,1724179845406,-500.0,0.00034931,21]
[335391854,1724179845416,-500.0,0.00034931,21]
[335391855,1724179845429,-712.12,0.00034931,21]
[335391856,1724179845439,-500.0,0.00034931,21]
[335391857,1724179845450,-712.12,0.00034931,21]
[335391858,1724179845461,-500.0,0.00034931,21]
[335391859,1724179845471,-500.0,0.00034931,21]
[335391860,1724179845480,-712.12,0.00034931,21]
[335391861,1724179845490,-393.44,0.00034931,21]
[335391862,1724179845499,-712.12,0.00034931,21]
[335391863,1724179845508,-712.21,0.00034931,21]
[335391864,1724179845520,-500.0,0.00034931,21]
[335391865,1724179845532,-500.0,0.00034931,21]
[335391866,1724179845542,-609.9246168,0.00034931,21]
[335391868,1724179845553,-500.0,0.00034931,21]
[335391869,1724179845561,-475.35192086,0.00034931,21]
[335391870,1724179845571,-500.40014985,0.00034931,21]
[335391871,1724179845580,-500.0,0.00034931,21]
[335391872,1724179845590,-272.17892098,0.00034931,21]
[335391873,1724179845599,-500.0,0.00034931,21]
[335391874,1724179845610,-500.0,0.00034931,21]
[335391875,1724179845621,-500.0,0.00034931,21]
[335391876,1724179845631,-501.55111095,0.00034931,21]
[335391877,1724179845641,-502.35873928,0.00034931,21]
[335391878,1724179845656,-500.0,0.00034931,21]
[335391879,1724179845667,-182.45159319,0.00034931,21]
[335391880,1724179845677,-500.0,0.00034931,7]
[335391881,1724179845686,-500.0,0.00034931,21]
[335391882,1724179845695,-583.2469333,0.00034931,21]
[335391883,1724179845705,-500.0,0.00034931,7]
[335391884,1724179845714,-500.0,0.00034931,21]
[335391885,1724179845723,-151.0,0.00034931,7]
[335391886,1724179845734,-500.0,0.00034931,21]
[335391887,1724179845743,-505.84147928,0.00034931,7]
[335391888,1724179845753,-151.0,0.00034931,7]
[335391889,1724179845762,-151.0,0.00034931,7]
[335391891,1724179845771,-151.0,0.00034931,7]
[335391893,1724179845780,-500.0,0.00034931,21]
[335391895,1724179845789,-505.03593326,0.00034931,21]
[335391897,1724179845799,-500.0,0.00034931,21]
[335391899,1724179845808,-500.0,0.00034931,21]
[335391901,1724179845816,-500.0,0.00034931,21]
[335391903,1724179845826,-500.0,0.00034931,21]
[335391905,1724179845835,-294.120576,0.00034931,7]
[335391907,1724179845844,-542.62,0.00034931,21]
[335391909,1724179845853,-500.0,0.00034931,21]
[335391911,1724179845862,-500.0,0.00034931,21]
[335391913,1724179845871,-500.0,0.00034931,21]
[335391915,1724179845881,-500.97453902,0.00034931,21]
[335391917,1724179845891,-500.0,0.00034931,21]
[335391919,1724179845901,-500.0,0.00034931,21]
[335391921,1724179845911,-500.0,0.00034931,21]
[335391922,1724179845920,-500.0,0.00034931,21]
[335391924,1724179845930,-500.0,0.00034931,21]
[335391926,1724179845939,-447.87583208,0.00034931,21]
[335391928,1724179845949,-500.0,0.00034931,21]
[335391931,1724179845960,-165.22248386,0.00034931,21]
[335391932,1724179845970,-500.0,0.00034931,21]
[335391934,1724179845979,-500.0,0.00034931,21]
[335391936,1724179845987,-387.94927931,0.00034931,21]
[335391954,1724179846119,-154.89311412,0.00021677,2]
[335391957,1724179846128,-154.71377951,0.00021677,2]
[335391960,1724179846137,-25675.80772356,0.00024668,3]
[335391963,1724179846148,-6279.9454572,0.00024668,3]
[335392013,1724179846519,-2588.84084831,0.00024668,3]
[335392019,1724179846566,-1511.84876258,0.00024668,3]
[335392242,1724180733153,-387.50416484,0.00012551,2]
[335392243,1724180825105,-300.0,0.00012355,2]
[335392244,1724180825126,-110.76270684,0.00012356,2]
[335392245,1724180831108,-2527.63946576,0.00012356,2]
[335392247,1724180846123,-2096.55482368,0.00013497,2]
[335392248,1724180846146,-1312.76054462,0.00013497,2]
[335392249,1724180853113,-3869.25970741,0.00012163,2]
[335392251,1724180946158,-1515.95250618,0.00013477,2]
[335392252,1724180946180,-1358.00511538,0.00013477,2]
[335392253,1724180946202,-1890.16392144,0.00013497,2]
[335392254,1724180946223,-300.0,0.00013697,2]
[335392255,1724180946244,-2771.25099289,0.00013698,2]
[335392256,1724180946265,-4778.34068519,0.00014245,2]
[335392257,1724180946292,-871.14103146,0.00014245,2]
[335392258,1724180946313,-187.210689,0.00014247,2]
[335392259,1724180946333,-420.0,0.00015067,2]
[335392260,1724180946353,-500.0,0.00016438,2]
[335392261,1724180946374,-2096.55482362,0.00016555,2]
[335392262,1724180946395,-180.0,0.00016573,2]
[335392263,1724180946415,-1000.0,0.00016986,2]
[335392264,1724180946435,-1500.0,0.00017884,2]
[335392265,1724180946455,-1295.8711088,0.00018593,2]
[335392266,1724180946477,-500.0,0.00018608,2]
[335392267,1724180946618,-470.7,0.00018636,2]
[335392268,1724180946640,-500.0,0.00018805,2]
[335392269,1724180946662,-884.59575988,0.00018989,2]
[335392270,1724180946683,-500.0,0.00019045,2]
[335392271,1724180946704,-500.0,0.00019392,2]
[335392272,1724180946726,-251.0,0.00019424,2]
[335392273,1724180946746,-2096.55482362,0.00019612,2]
[335392274,1724180946768,-500.0,0.0001976,2]
[335392275,1724180946789,-500.0,0.0001981,2]
[335392276,1724180946810,-500.0,0.00019885,2]
[335392277,1724180946833,-347.33869936,0.0001998,2]
[335392278,1724180951523,265.28688152,0.00014743,2]
[335392283,1724181001333,181.5887755,7.174e-05,2]
[335392308,1724181032325,-1039.12861041,0.00013971,2]
[335392378,1724181038322,-17202.47853141,0.00013971,2]
[335392380,1724181038332,-347.784047,0.00014247,2]
[335392382,1724181038342,-152.66130064,0.0001998,2]
[335392384,1724181038352,-156.6552172,0.0002,2]
[335392386,1724181038361,-470.7,0.00020124,2]
[335392388,1724181038370,-271.56079623,0.00020224,2]
[335392390,1724181038380,-782.65797788,0.0002024,2]
[335392392,1724181038390,-154.60575532,0.00020291,2]
[335392394,1724181038399,-435.0,0.00020291,2]
[335392396,1724181038408,-500.0,0.0002054,2]
[335392398,1724181038418,-347.784047,0.00020707,2]
[335392400,1724181038427,-183.342504,0.00021007,2]
[335392402,1724181038436,-500.0,0.0002101,2]
[335392403,1724181038446,-162.199273,0.00021044,2]
[335392405,1724181038456,-216.006872,0.00021318,2]
[335392407,1724181038466,-500.0,0.00021532,2]
[335392410,1724181038476,-470.7,0.00021611,2]
[335392412,1724181038485,-151.0,0.00021611,2]
[335392413,1724181038495,-500.0,0.0002174,2]
[335392414,1724181038504,-500.0,0.00021795,2]
[335392416,1724181038514,-500.0,0.00021947,2]
[335392418,1724181038523,-160.83387276,0.00022,2]
[335392420,1724181038532,-500.0,0.00022073,2]
[335392422,1724181038541,-500.0,0.00022408,2]
[335392424,1724181038551,-500.0,0.00022471,2]
[335392425,1724181038560,-500.0,0.00022489,2]
[335392427,1724181038569,-500.0,0.00022529,2]
[335392429,1724181038578,-500.0,0.00023052,2]
[335392431,1724181038588,-470.7,0.00023099,2]
[335392433,1724181038598,-151.0,0.00023099,2]
[335392435,1724181038607,-500.0,0.00023143,2]
[335392436,1724181038617,-500.0,0.00023241,2]
[335392437,1724181038626,-500.0,0.00023762,2]
[335392438,1724181038636,-500.0,0.00023959,2]
[335392439,1724181038646,-500.0,0.00024062,2]
[335392440,1724181038656,-1694.7430816,0.0002433,2]
[335392441,1724181038669,-277.6716568,0.00024448,2]
[335392442,1724181038678,-1065.06381345,0.00024567,2]
[335392443,1724181038688,-470.7,0.00024586,2]
[335392444,1724181038698,-151.0,0.00024586,2]
[335392445,1724181038708,-10342.93698711,0.000246,2]
[335392446,1724181038718,-646.2,0.00024648,3]
[335392447,1724181038727,-323.1,0.00024648,3]
[335392448,1724181038737,-161.55,0.00024648,3]
[335392449,1724181038746,-484.65,0.00024648,3]
[335392450,1724181038755,-953.45396956,0.00024651,2]
[335392451,1724181038765,-10003.90066576,0.00024657,2]
[335392452,1724181038775,-200.0,0.00024658,2]
[335392453,1724181038785,-200.0,0.00024658,15]
[335392454,1724181038795,-380.0,0.00024658,2]
[335392455,1724181038805,-144072.646854,0.00024658,3]
[335392456,1724181038815,-154.60575532,0.00024662,2]
[335392457,1724181038825,-154.60575532,0.00024662,2]
[335392458,1724181038835,-1111.07542891,0.00024662,2]
[335392459,1724181038847,-500.0,0.00024667,2]
[335392460,1724181038856,-500.0,0.00024667,2]
[335392461,1724181038866,-576.39829334,0.00024667,2]
[335392462,1724181038876,-500.0,0.00024667,2]
[335392463,1724181038886,-500.0,0.00024667,2]
[335392464,1724181038896,-500.0,0.00024667,2]
[335392465,1724181038905,-604.17069715,0.00024667,2]
[335392466,1724181038915,-4179.09341648,0.00024668,9]
[335392467,1724181038926,-10511.84618177,0.00024668,2]
[335392468,1724181038937,-1260.76755592,0.00024668,2]
[335392469,1724181038947,-551.16624487,0.00024668,2]
[335392470,1724181038957,-226.11908431,0.00024668,2]
[335392471,1724181038968,-126499.41497098,0.00024668,7]
[335392472,1724181038977,-10003.90066576,0.00024728,2]
[335392473,1724181038987,-154.71377951,0.00024728,2]
[335392474,1724181038996,-154.60575532,0.00024859,2]
[335392475,1724181039006,-154.60575532,0.00025,2]
[335392476,1724181039015,-150.112233,0.00025,4]
[335392477,1724181039024,-277.92028119,0.00025,30]
[335392478,1724181039033,-258.18032213,0.00025,120]
[335392479,1724181039043,-503.79102748,0.00025,2]
[335392480,1724181039054,-199.0,0.00025,2]
[335392481,1724181039066,-308.19214429,0.00025084,2]
[335392482,1724181039076,-503.79102748,0.0002525,2]
[335392483,1724181039085,-503.79102748,0.000255,2]
[335392484,1724181039095,-503.79102748,0.0002575,2]
[335392485,1724181039105,-600.0,0.00025886,2]
[335392486,1724181039114,-48024.2156181,0.00025998,3]
[335392487,1724181039124,-150.112233,0.00026,9]
[335392488,1724181039135,-503.79102748,0.00026,2]
[335392489,1724181039144,-1292.4,0.00026018,3]
[335392490,1724181039153,-646.2,0.00026018,3]
[335392491,1724181039163,-323.1,0.00026018,3]
[335392492,1724181039172,-470.7,0.00026074,2]
[335392493,1724181039182,-151.0,0.00026074,2]
[335392494,1724181039191,-611.38748057,0.0002625,2]
[335392495,1724181039201,-500.0,0.00026482,2]
[335392496,1724181039211,-1065.06381342,0.00026525,2]
[335392497,1724181039220,-48024.2156181,0.0002659,3]
[335392498,1724181039229,-822.83,0.000266,31]
[335392499,1724181039331,-822.83,0.000266,31]
[335392500,1724181039363,-822.83,0.000266,31]
[335392501,1724181039372,-822.83,0.000266,31]
[335392502,1724181039381,-822.83,0.000266,31]
[335392503,1724181039390,-822.83,0.000266,31]
[335392504,1724181039400,-822.83,0.000266,31]
[335392505,1724181039409,-822.83,0.000266,31]
[335392506,1724181039418,-822.83,0.000266,31]
[335392507,1724181039428,-822.83,0.000266,31]
[335392508,1724181039437,-822.83,0.000266,31]
[335392509,1724181039446,-822.83,0.000266,31]
[335392510,1724181039454,-4495.19,0.000266,14]
[335392511,1724181039463,-308.24,0.000266,7]
[335392512,1724181039473,-825.1,0.000266,14]
[335392513,1724181039482,-46902.02,0.000266,14]
[335392514,1724181039491,-150.112233,0.00027,6]
[335392515,1724181039500,-347.784047,0.00027167,2]
[335392516,1724181039509,-470.7,0.00027561,2]
[335392517,1724181039518,-151.0,0.00027561,2]
[335392518,1724181039527,-150.112233,0.00028,5]
[335392519,1724181039537,-339.14513774,0.00028,30]
[335392520,1724181039546,-183.342504,0.00028231,2]
[335392521,1724181039556,-1065.06381342,0.00028484,2]
[335392522,1724181039566,-822.83,0.000286,31]
[335392523,1724181039575,-822.83,0.000286,31]
[335392524,1724181039584,-822.83,0.000286,31]
[335392525,1724181039593,-822.83,0.000286,31]
[335392526,1724181039602,-822.83,0.000286,31]
[335392527,1724181039612,-822.83,0.000286,31]
[335392528,1724181039621,-822.83,0.000286,31]
[335392529,1724181039633,-822.83,0.000286,31]
[335392530,1724181039642,-822.83,0.000286,31]
[335392531,1724181039651,-822.83,0.000286,31]
[335392532,1724181039661,-822.83,0.000286,31]
[335392533,1724181039670,-822.83,0.000286,31]
[335392534,1724181039680,-822.83,0.000286,31]
[335392535,1724181039690,-822.83,0.000286,31]
[335392536,1724181039700,-822.83,0.000286,31]
[335392537,1724181039709,-822.83,0.000286,31]
[335392538,1724181039718,-822.83,0.000286,31]
[335392539,1724181039727,-822.83,0.000286,31]
[335392540,1724181039736,-822.83,0.000286,31]
[335392541,1724181039746,-822.83,0.000286,31]
[335392542,1724181039755,-822.83,0.000286,31]
[335392543,1724181039765,-822.83,0.000286,31]
[335392544,1724181039775,-822.83,0.000286,31]
[335392545,1724181039784,-822.83,0.000286,31]
[335392546,1724181039793,-150.112233,0.00029,6]
[335392547,1724181039808,-470.7,0.00029049,2]
[335392548,1724181039817,-151.0,0.00029049,2]
[335392549,1724181039827,-154.60575532,0.000299,2]
[335392550,1724181039836,-48024.2156181,0.0002999,4]
[335392551,1724181039845,-178.69269968,0.0003,5]
[335392552,1724181039854,-489.18411625,0.0003,3]
[335392553,1724181039864,-150.112233,0.0003,5]
[335392554,1724181039874,-223.0,0.0003,2]
[335392555,1724181039885,-1065.06381342,0.00030442,2]
[335392556,1724181039896,-470.7,0.00030536,2]
[335392557,1724181039907,-151.0,0.00030536,2]
[335392558,1724181039919,-592.74060959,0.000306,2]
[335392559,1724181039929,-822.83,0.000307,31]
[335392560,1724181039939,-822.83,0.000307,31]
[335392561,1724181039948,-822.83,0.000307,31]
[335392562,1724181039957,-822.83,0.000307,31]
[335392563,1724181039967,-822.83,0.000307,31]
[335392564,1724181039976,-822.83,0.000307,31]
[335392565,1724181039985,-822.83,0.000307,31]
[335392566,1724181039995,-822.83,0.000307,31]
[335392567,1724181040005,-822.83,0.000307,31]
[335392568,1724181040016,-822.83,0.000307,31]
[335392569,1724181040027,-822.83,0.000307,31]
[335392570,1724181040038,-822.83,0.000307,31]
[335392571,1724181040050,-822.83,0.000307,31]
[335392572,1724181040063,-822.83,0.000307,31]
[335392573,1724181040074,-822.83,0.000307,31]
[335392574,1724181040085,-822.83,0.000307,31]
[335392575,1724181040094,-822.83,0.000307,31]
[335392576,1724181040104,-822.83,0.000307,31]
[335392577,1724181040114,-822.83,0.000307,31]
[335392578,1724181040123,-822.83,0.000307,31]
[335392579,1724181040133,-822.83,0.000307,31]
[335392580,1724181040143,-822.83,0.000307,31]
[335392581,1724181040154,-822.83,0.000307,31]
[335392582,1724181040163,-822.83,0.000307,31]
[335392583,1724181040173,-46902.02,0.000307,14]
[335392584,1724181040182,-150.112233,0.00031,5]
[335392585,1724181040192,-592.74060956,0.00031078,2]
[335392586,1724181040201,-150.112234,0.000314,7]
[335392587,1724181040212,-592.74060956,0.00031556,2]
[335392588,1724181040221,-216.006872,0.00031977,2]
[335392589,1724181040231,-150.112233,0.00032,7]
[335392590,1724181040241,-437.0,0.00032,5]
[335392591,1724181040250,-308.24,0.00032,7]
[335392592,1724181040259,-825.1,0.00032,14]
[335392593,1724181040269,-470.7,0.00032024,3]
[335392594,1724181040278,-151.0,0.00032024,3]
[335392595,1724181040287,-592.74060956,0.00032033,2]
[335392596,1724181040298,-4495.19,0.000321,14]
[335392597,1724181040307,-150.112233,0.000322,10]
[335392598,1724181040316,-1415.0,0.00032387,2]
[335392599,1724181040325,-7726.0,0.00032387,2]
[335392600,1724181040334,-1065.06381342,0.000324,2]
[335392601,1724181040343,-323253.02218176,0.000325,60]
[335392602,1724181040352,-592.74060956,0.00032511,2]
[335392603,1724181040361,-5125.1975621,0.00032566,2]
[335392604,1724181040373,-822.83,0.000327,31]
[335392605,1724181040382,-822.83,0.000327,31]
[335392606,1724181040391,-822.83,0.000327,31]
[335392607,1724181040401,-822.83,0.000327,31]
[335392608,1724181040410,-822.83,0.000327,31]
[335392609,1724181040420,-822.83,0.000327,31]
[335392610,1724181040429,-822.83,0.000327,31]
[335392611,1724181040438,-822.83,0.000327,31]
[335392612,1724181040447,-822.83,0.000327,31]
[335392613,1724181040457,-822.83,0.000327,31]
[335392614,1724181040466,-822.83,0.000327,31]
[335392615,1724181040475,-822.83,0.000327,31]
[335392616,1724181040484,-822.83,0.000327,31]
[335392617,1724181040493,-822.83,0.000327,31]
[335392618,1724181040502,-822.83,0.000327,31]
[335392619,1724181040512,-822.83,0.000327,31]
[335392620,1724181040521,-822.83,0.000327,31]
[335392621,1724181040530,-822.83,0.000327,31]
[335392622,1724181040539,-822.83,0.000327,31]
[335392624,1724181040550,-822.83,0.000327,31]
[335392626,1724181040559,-822.83,0.000327,31]
[335392628,1724181040568,-822.83,0.000327,31]
[335392630,1724181040578,-822.83,0.000327,31]
[335392632,1724181040587,-822.83,0.000327,31]
[335392634,1724181040598,-5125.1975621,0.00032783,2]
[335392636,1724181040607,-592.74060956,0.00032989,2]
[335392637,1724181040617,-1208.69335415,0.00033,120]
[335392639,1724181040626,-150.112233,0.00033,6]
[335392641,1724181040635,-300.0,0.00033,7]
[335392643,1724181040645,-7384.10920276,0.00033,7]
[335392645,1724181040654,-223.0,0.00033,2]
[335392647,1724181040664,-223.0,0.00033,2]
[335392649,1724181040673,-172.0,0.00033,2]
[335392651,1724181040683,-5125.1975621,0.00033061,2]
[335392652,1724181040692,-5125.1975621,0.00033187,2]
[335392654,1724181040702,-155.12080504,0.00033234,3]
[335392656,1724181040712,-150.0,0.0003337,2]
[335392658,1724181040722,-46902.02,0.000334,14]
[335392660,1724181040731,-592.74060956,0.00033467,2]
[335392662,1724181040740,-470.7,0.00033511,4]
[335392664,1724181040749,-151.0,0.00033511,4]
[335392666,1724181040758,-347.784047,0.00033626,2]
[335392667,1724181040767,-5125.1975621,0.00033688,2]
[335392670,1724181040777,-150.0,0.00033754,2]
[335392672,1724181040787,-150.0,0.00033773,5]
[335392674,1724181040797,-2853.63,0.00033779,2]
[335392676,1724181040809,-2853.63,0.00033779,2]
[335392678,1724181040820,-2853.63,0.00033779,2]
[335392680,1724181040830,-2853.63,0.00033779,2]
[335392682,1724181040840,-2853.63,0.00033779,2]
[335392684,1724181040851,-2853.63,0.00033779,2]
[335392686,1724181040862,-2853.63,0.00033779,2]
[335392688,1724181040871,-2853.63,0.00033779,2]
[335392690,1724181040880,-2853.63,0.00033779,2]
[335392692,1724181040890,-2853.63,0.00033779,2]
[335392694,1724181040900,-78435.71887269,0.0003378,7]
[335392696,1724181040910,-5125.1975621,0.00033845,2]
[335392698,1724181040919,-153.0,0.0003389,2]
[335392700,1724181040930,-153.0,0.0003389,2]
[335392702,1724181040939,-153.0,0.0003389,2]
[335392704,1724181040948,-153.0,0.0003389,2]
[335392706,1724181040957,-150.112237,0.000339,6]
[335392708,1724181040966,-1932.186094,0.000339,16]
[335392710,1724181040976,-592.74060956,0.00033944,2]
[335392712,1724181040986,-300.0,0.00034,9]
[335392714,1724181040996,-150.112233,0.00034,10]
[335392716,1724181041006,-308.24,0.00034,30]
[335392718,1724181041015,-825.1,0.00034,14]
[335392720,1724181041025,-7384.0,0.00034,7]
[335392722,1724181041034,-828.80041013,0.00034,7]
[335392724,1724181041043,-4495.19,0.000341,14]
[335392726,1724181041053,-151.0,0.000341,7]
[335392728,1724181041065,-221.988396,0.000341,7]
[335392730,1724181041074,-151.0,0.000341,7]
[335392732,1724181041083,-158.130838,0.000341,7]
[335392734,1724181041093,-158.130838,0.000341,7]
[335392736,1724181041102,-151.0,0.000341,7]
[335392738,1724181041112,-151.0,0.000341,7]
[335392740,1724181041121,-151.0,0.000341,7]
[335392742,1724181041132,-151.0,0.000341,7]
[335392743,1724181041142,-151.0,0.000341,7]
[335392745,1724181041151,-151.0,0.000341,7]
[335392747,1724181041161,-327.133494,0.000341,7]
[335392748,1724181041170,-151.0,0.000341,7]
[335392750,1724181041179,-327.133494,0.000341,7]
[335392752,1724181041188,-150.0,0.0003412,2]
[335392754,1724181041198,-5125.1975621,0.00034195,2]
[335392756,1724181041207,-257.225589,0.00034247,2]
[335392758,1724181041216,-151.0,0.00034286,7]
[335392760,1724181041226,-151.0,0.00034286,7]
[335392762,1724181041236,-151.0,0.00034286,7]
[335392764,1724181041245,-5523.812381,0.00034286,7]
[335392766,1724181041255,-5523.812381,0.00034286,7]
[335392768,1724181041263,-151.0,0.00034286,7]
[335392770,1724181041273,-151.0,0.00034286,7]
[335392772,1724181041282,-188.746739,0.00034286,7]
[335392774,1724181041292,-188.746739,0.00034286,7]
[335392776,1724181041302,-151.0,0.00034286,7]
[335392777,1724181041311,-151.0,0.00034286,7]
[335392779,1724181041320,-151.0,0.00034286,7]
[335392781,1724181041329,-151.0,0.00034286,7]
[335392783,1724181041339,-151.0,0.00034286,7]
[335392785,1724181041348,-478.77,0.000343,120]
[335392787,1724181041357,-478.771,0.000343,120]
[335392789,1724181041366,-478.771,0.000343,120]
[335392791,1724181041377,-478.771,0.000343,120]
[335392793,1724181041388,-478.771,0.000343,120]
[335392795,1724181041399,-151.0,0.000343,7]
[335392797,1724181041409,-151.0,0.000343,7]
[335392800,1724181041420,-415.862932,0.000343,7]
[335392802,1724181041430,-151.0,0.000343,7]
[335392804,1724181041439,-415.862932,0.000343,7]
[335392806,1724181041448,-151.0,0.000343,7]
[335392808,1724181041458,-203.728254,0.000343,7]
[335392810,1724181041469,-250.0,0.00034321,5]
[335392812,1724181041478,-150.0,0.0003437,2]
[335392814,1724181041490,-150.112233,0.000344,6]
[335392816,1724181041499,-1000.0,0.000344,16]
[335392818,1724181041509,-592.74060956,0.00034422,2]
[335392820,1724181041518,-151.20881187,0.00034439,2]
[335392822,1724181041528,-5125.1975621,0.00034472,2]
[335392824,1724181041537,-620.91,0.0003452,21]
[335392826,1724181041549,-620.91,0.0003452,21]
[335392828,1724181041558,-620.91,0.0003452,21]
[335392830,1724181041568,-620.91,0.0003452,21]
[335392832,1724181041577,-620.91,0.0003452,21]
[335392834,1724181041586,-620.91,0.0003452,21]
[335392836,1724181041599,-620.91,0.0003452,21]
[335392839,1724181041611,-620.91,0.0003452,21]
[335392841,1724181041621,-620.91,0.0003452,21]
[335392843,1724181041631,-620.91,0.0003452,21]
[335392845,1724181041640,-620.91,0.0003452,21]
[335392847,1724181041649,-620.91,0.0003452,21]
[335392849,1724181041659,-620.91,0.0003452,21]
[335392851,1724181041668,-620.91,0.0003452,21]
[335392853,1724181041677,-620.91,0.0003452,21]
[335392855,1724181041686,-620.91,0.0003452,21]
[335392856,1724181041696,-620.91,0.0003452,21]
[335392858,1724181041705,-620.91,0.0003452,21]
[335392860,1724181041714,-620.91,0.0003452,21]
[335392862,1724181041724,-620.91,0.0003452,21]
[335392864,1724181041733,-620.91,0.0003452,21]
[335392866,1724181041743,-620.91,0.0003452,21]
[335392877,1724181041836,-620.91,0.0003452,21]
[335392879,1724181041845,-621.09,0.0003452,21]
[335392881,1724181041855,-172.0,0.00034521,2]
[335392883,1724181041864,-153.0,0.00034712,2]
[335392885,1724181041873,-5125.19756213,0.00034715,2]
[335392887,1724181041883,-1742.01513063,0.000348,12]
[335392889,1724181041892,-1742.01513063,0.000348,12]
[335392890,1724181041901,-1742.01513063,0.000348,12]
[335392892,1724181041911,-1742.01513063,0.000348,12]
[335392894,1724181041920,-822.83,0.000348,31]
[335392896,1724181041930,-822.83,0.000348,31]
[335392898,1724181041940,-822.83,0.000348,31]
[335392900,1724181041951,-822.83,0.000348,31]
[335392903,1724181041960,-822.83,0.000348,31]
[335392905,1724181041969,-822.83,0.000348,31]
[335392907,1724181041978,-822.83,0.000348,31]
[335392908,1724181041988,-822.83,0.000348,31]
[335392911,1724181041997,-822.83,0.000348,31]
[335392912,1724181042006,-822.83,0.000348,31]
[335392915,1724181042016,-822.83,0.000348,31]
[335392917,1724181042026,-822.83,0.000348,31]
[335392919,1724181042037,-822.83,0.000348,31]
[335392921,1724181042048,-822.83,0.000348,31]
[335392923,1724181042063,-822.83,0.000348,31]
[335392925,1724181042072,-822.83,0.000348,31]
[335392927,1724181042081,-438.33131548,0.00034868,5]
[335392929,1724181042091,-592.74060956,0.000349,2]
[335392931,1724181042100,-150.0,0.000349,2]
[335392933,1724181042111,-755.0,0.000349,2]